lending/lending_fUSD_20251124
["ID","MTS","AMOUNT","RATE_DAILY","PERIOD"]
[394831401,1764004250725,-200.0,0.0001836,2]
[394831403,1764004250734,-619.1481329,0.0001836,2]
[394831405,1764004250743,-150.0,0.0001836,2]
[394831407,1764004250752,-1866.0,0.0001836,2]
[394831409,1764004250761,-500.0,0.0001836,2]
[394831411,1764004250770,-166.66,0.00018397,2]
[394831413,1764004250780,-150.0,0.00018497,2]
[394831415,1764004250789,-209.46086123,0.00018497,2]
[394831417,1764004250798,-252.36583461,0.00018497,2]
[394831419,1764004250807,-261.19745522,0.00018497,2]
[394831421,1764004250817,-185.27774158,0.00018497,2]
[394831423,1764004250826,-500.0,0.00018497,2]
[394831425,1764004250835,-561.93174976,0.00018497,2]
[394831427,1764004250844,-500.0,0.00018497,2]
[394831429,1764004250853,-150.0,0.00018497,2]
[394831431,1764004250862,-1866.0,0.00018497,2]
[394831433,1764004250871,-500.0,0.00018497,2]
[394831435,1764004250881,-1589.0,0.00018498,2]
[394831437,1764004250892,-161.85,0.000185,2]
[394831439,1764004250901,-1000.0,0.00018521,2]
[394831441,1764004250910,-1000.0,0.00018521,2]
[394831443,1764004250919,-1000.0,0.00018521,2]
[394831445,1764004250928,-371.4890484,0.00018521,2]
[394831447,1764004250937,-1001.54182264,0.00018521,2]
[394831449,1764004250946,-898.97983544,0.00018521,2]
[394831464,1764004251067,-264.22125371,0.00018521,2]
[394831466,1764004251077,-409.38822552,0.00018521,2]
[394831468,1764004251088,-505.45916343,0.00018521,2]
[394831470,1764004251097,-502.35726483,0.00018521,2]
[394831472,1764004251107,-932.78038,0.00018521,2]
[394831474,1764004251116,-1033.61401777,0.00018521,2]
[394831476,1764004251125,-1000.0,0.00018521,2]
[394831478,1764004251135,-500.0,0.00018521,2]
[394831480,1764004251145,-500.0,0.00018521,2]
[394831482,1764004251154,-1000.0,0.00018521,2]
[394831484,1764004251163,-1000.0,0.00018521,2]
[394831487,1764004251176,-427.0,0.00018573,2]
[394831489,1764004251194,-207.19,0.0001862,2]
[394831490,1764004251203,-154.55374578,0.00018634,2]
[394831492,1764004251212,-500.0,0.00018634,2]
[394831494,1764004251221,-500.0,0.00018634,2]
[394831496,1764004251230,-200.0,0.00018634,2]
[394831499,1764004251240,-1866.0,0.00018634,2]
[394831501,1764004251249,-500.0,0.00018634,2]
[394831503,1764004251258,-250.0,0.00018639,2]
[394831505,1764004251269,-250.28,0.00018661,2]
[394831507,1764004251278,-197.57117919,0.00018691,2]
[394831509,1764004251288,-427.0,0.00018693,2]
[394831511,1764004251298,-1094.0,0.000187,4]
[394831513,1764004251307,-292.17,0.00018708,2]
[394831515,1764004251316,-2000.0,0.00018743,2]
[394831517,1764004251325,-1539.0,0.00018743,2]
[394831518,1764004251334,-828.44,0.0001876,2]
[394831520,1764004251344,-500.0,0.00018771,2]
[394831522,1764004251353,-599.39719556,0.00018771,2]
[394831525,1764004251363,-1866.0,0.00018771,2]
[394831526,1764004251373,-450.0,0.00018771,2]
[394831529,1764004251383,-150.61,0.000188,2]
[394831530,1764004251393,-150.61,0.000188,2]
[394831533,1764004251402,-150.61,0.000188,2]
[394831535,1764004251411,-150.61,0.000188,2]
[394831537,1764004251421,-150.61,0.000188,2]
[394831538,1764004251430,-150.61,0.000188,2]
[394831540,1764004251439,-150.61,0.000188,2]
[394831542,1764004251449,-150.61,0.000188,2]
[394831544,1764004251458,-150.61,0.000188,2]
[394831547,1764004251469,-150.61,0.000188,2]
[394831548,1764004251478,-150.61,0.000188,2]
[394831550,1764004251487,-150.61,0.000188,2]
[394831552,1764004251497,-150.61,0.000188,2]
[394831554,1764004251509,-150.61,0.000188,2]
[394831556,1764004251518,-150.61,0.000188,2]
[394831558,1764004251527,-150.61,0.000188,2]
[394831560,1764004251536,-150.61,0.000188,2]
[394831563,1764004251547,-150.61,0.000188,2]
[394831564,1764004251556,-150.61,0.000188,2]
[394831566,1764004251565,-150.61,0.000188,2]
[394831568,1764004251574,-150.61,0.000188,2]
[394831570,1764004251586,-150.61,0.000188,2]
[394831573,1764004251595,-150.61,0.000188,2]
[394831575,1764004251604,-150.61,0.000188,2]
[394831577,1764004251613,-150.61,0.000188,2]
[394831579,1764004251623,-150.61,0.000188,2]
[394831581,1764004251631,-1539.0,0.00018829,2]
[394831583,1764004251642,-157.0,0.000189,3]
[394831584,1764004251651,-158.0,0.000189,3]
[394831586,1764004251660,-500.0,0.00018908,2]
[394831588,1764004251670,-1866.0,0.00018908,2]
[394831590,1764004251679,-177.64,0.00018959,2]
[394831592,1764004251688,-424.71,0.00018959,2]
[394831595,1764004251697,-177.64,0.00018959,2]
[394831597,1764004251706,-177.64,0.00018959,2]
[394831598,1764004251717,-688.46,0.00018959,2]
[394831600,1764004251726,-357.93,0.00018959,2]
[394831602,1764004251735,-551.17,0.00018959,2]
[394831603,1764004251753,-417.48,0.00018959,2]
[394831604,1764004251771,-150.0,0.00018959,2]
[394831605,1764004251789,-169.52,0.00018959,2]
[394831606,1764004251809,-150.0,0.00018959,2]
[394831607,1764004251826,-551.17,0.00018959,2]
[394831608,1764004251845,-169.75,0.00018959,2]
[394831609,1764004251863,-417.48,0.00018959,2]
[394831612,1764004251883,-551.17,0.00018959,2]
[394831615,1764004251904,-417.48,0.00018959,2]
[394831617,1764004251921,-169.75,0.00018959,2]
[394831619,1764004251940,-150.0,0.00018959,2]
[394831620,1764004251957,-551.17,0.00018959,2]
[394831621,1764004251970,-417.48,0.00018959,2]
[394831622,1764004251988,-150.0,0.00018959,2]
[394831623,1764004252001,-166.66,0.00018967,2]
[394831624,1764004252017,-1539.0,0.00018982,2]
[394831625,1764004252033,-500.0,0.00019,2]
[394831626,1764004252047,-5132.56304945,0.00019,2]
[394831627,1764004252061,-180.76074917,0.00019,2]
[394831628,1764004252074,-180.76074917,0.00019,2]
[394831629,1764004252088,-58149.36835636,0.00019,2]
[394831630,1764004252103,-58149.36835636,0.00019,2]
[394831631,1764004252120,-58149.36835636,0.00019,2]
[394831632,1764004252134,-58149.36835636,0.00019,2]
[394831633,1764004252148,-58149.36835636,0.00019,2]
[394831634,1764004252164,-300.0,0.00019,2]
[394831635,1764004252178,-201.81121325,0.00019,2]
[394831636,1764004252193,-201.81121325,0.00019,2]
[394831637,1764004252208,-500.0,0.00019045,2]
[394831638,1764004252221,-1866.0,0.00019045,2]
[394831639,1764004252235,-510.85568218,0.00019068,2]
[394831640,1764004252251,-654.37970467,0.00019068,2]
[394831641,1764004252266,-944.02589922,0.00019068,2]
[394831642,1764004252279,-1500.0,0.00019068,2]
[394831643,1764004252295,-1500.0,0.00019068,2]
[394831644,1764004252310,-427.0,0.00019069,2]
[394831645,1764004252325,-427.0,0.00019077,2]
[394831646,1764004252341,-1539.0,0.0001911,2]
[394831647,1764004252355,-314.79830118,0.00019122,2]
[394831648,1764004252369,-1539.0,0.00019124,2]
[394831649,1764004252384,-169.75,0.00019125,2]
[394831650,1764004252399,-150.0,0.00019125,2]
[394831651,1764004252414,-2342.02,0.00019178,2]
[394831652,1764004252428,-151.0,0.00019178,2]
[394831653,1764004252444,-151.0,0.00019178,2]
[394831654,1764004252459,-500.0,0.00019182,2]
[394831655,1764004252473,-1866.0,0.00019182,2]
[394831656,1764004252487,-427.0,0.0001928,2]
[394831657,1764004252502,-427.0,0.00019287,2]
[394831658,1764004252523,-2000.0,0.00019291,2]
[394831659,1764004252537,-1866.0,0.00019319,2]
[394831660,1764004252551,-587.0,0.00019338,2]
[394831661,1764004252568,-9999.99,0.00019339,2]
[394831662,1764004252583,-1207.96,0.00019339,2]
[394831663,1764004252597,-150.99,0.00019339,2]
[394831664,1764004252611,-828.44,0.00019438,2]
[394831665,1764004252625,-1866.0,0.00019456,2]
[394831666,1764004252639,-2351.0,0.00019533,2]
[394831667,1764004252655,-166.66,0.00019536,2]
[394831668,1764004252669,-1866.0,0.00019593,2]
[394831669,1764004252684,-2031.71740597,0.00019616,2]
[394831670,1764004252700,-385.39770631,0.00019616,2]
[394831671,1764004252714,-1600.0,0.00019662,2]
[394831672,1764004252723,-346.0,0.000197,2]
[394831673,1764004252732,-1866.0,0.0001973,2]
[394831674,1764004252741,-1910.0,0.00019777,2]
[394831675,1764004252750,-280.39,0.00019781,2]
[394831676,1764004252759,-417.4,0.00019781,2]
[394831677,1764004252768,-150.0,0.00019781,2]
[394831678,1764004252778,-169.71,0.00019781,2]
[394831679,1764004252787,-177.6,0.00019781,2]
[394831680,1764004253013,-1000.0,0.0001982,2]
[394831681,1764004253025,-2000.0,0.00019839,2]
[394831682,1764004253034,-1866.0,0.00019867,2]
[394831683,1764004253044,-4546.35865305,0.000199,3]
[394831684,1764004253053,-151.0,0.00019947,2]
[394831685,1764004253062,-47238.64813154,0.0001995,15]
[394831686,1764004253071,-169.06,0.0001996,2]
[394831687,1764004253081,-63975.54570815,0.0002,5]
[394831688,1764004253090,-3950.0,0.0002,2]
[394831689,1764004253100,-7242.22252519,0.0002,2]
[394831690,1764004253109,-1286.02110414,0.0002,2]
[394831691,1764004253119,-1038.03322399,0.0002,2]
[394831692,1764004253129,-2844.63774645,0.0002,2]
[394831693,1764004253139,-320.77957447,0.0002,2]
[394831694,1764004253149,-11517.13557372,0.0002,2]
[394831695,1764004253158,-33550.0,0.0002,7]
[394831696,1764004253168,-500.0,0.0002,2]
[394831697,1764004253178,-426.8933355,0.0002,7]
[394831698,1764004253187,-1866.0,0.00020004,2]
[394831699,1764004253197,-8720.0,0.0002001,2]
[394831700,1764004253207,-166.66,0.00020106,2]
[394831701,1764004253216,-828.44,0.00020116,2]
[394831702,1764004253225,-1866.0,0.00020141,2]
[394831703,1764004253234,-307.08,0.00020187,2]
[394831704,1764004253244,-1866.0,0.00020278,2]
[394831705,1764004253254,-9890.7584911,0.000203,2]
[394831706,1764004253263,-2000.0,0.00020387,2]
[394831707,1764004253273,-1866.0,0.00020415,2]
[394831708,1764004253282,-822.0,0.00020465,2]
[394831709,1764004253291,-1601.0,0.00020465,2]
[394831710,1764004253300,-1256.0,0.00020465,2]
[394831711,1764004253310,-659.0,0.00020465,2]
[394831712,1764004253318,-2715.0,0.00020484,2]
[394831713,1764004253328,-6499.0,0.00020484,2]
[394831714,1764004253337,-182.02,0.00020541,2]
[394831715,1764004253347,-2910.24,0.00020548,2]
[394831716,1764004253357,-190.67,0.00020548,2]
[394831717,1764004253366,-20006.1,0.00020548,2]
[394831718,1764004253376,-151.0,0.00020548,2]
[394831719,1764004253386,-253.323144,0.00020548,2]
[394831720,1764004253396,-253.323144,0.00020548,2]
[394831721,1764004253406,-253.323144,0.00020548,2]
[394831722,1764004253416,-253.323144,0.00020548,2]
[394831723,1764004253425,-1866.0,0.00020552,2]
[394831724,1764004253434,-1866.0,0.00020689,2]
[394831725,1764004253444,-22512.19230936,0.000207,2]
[394831726,1764004253454,-150.0,0.00020719,2]
[394831727,1764004253463,-489.826,0.00020719,2]
[394831728,1764004253472,-3437.0,0.00020719,2]
[394831729,1764004253482,-828.44,0.00020795,2]
[394831730,1764004253491,-2206.9265261,0.00020813,2]
[394831731,1764004253501,-1866.0,0.00020826,2]
[394831732,1764004253512,-2000.0,0.00020935,2]
[394831733,1764004253522,-1866.0,0.00020963,2]
[394831734,1764004253532,-20000.0,0.00021,2]
[394831735,1764004253541,-41527.77856573,0.00021,2]
[394831736,1764004253550,-1184.92843742,0.00021,2]
[394831737,1764004253560,-195.58917678,0.00021,2]
[394831738,1764004253569,-350.0,0.00021,2]
[394831739,1764004253579,-12431.77,0.00021068,2]
[394831740,1764004253591,-1877.04295443,0.000211,2]
[394831741,1764004253601,-677.0,0.00021139,2]
[394831742,1764004253610,-154.14,0.00021329,2]
[394831743,1764004253620,-3292.0,0.00021459,2]
[394831744,1764004253630,-57167.8740257,0.000215,2]
[394831745,1764004253640,-220.58613883,0.000215,2]
[394831746,1764004253649,-2000.0,0.000215,2]
[394831747,1764004253659,-1600.0,0.00021628,2]
[394831748,1764004253669,-1000.0,0.00021802,2]
[394831749,1764004253678,-609.58,0.00021917,2]
[394831750,1764004253687,-5000.0,0.00021918,2]
[394831751,1764004253696,-230.587346,0.00021918,2]
[394831752,1764004253705,-230.587346,0.00021918,2]
[394831753,1764004253715,-230.587346,0.00021918,2]
[394831754,1764004253723,-230.587346,0.00021918,2]
[394831755,1764004253732,-150.19776473,0.00021918,2]
[394831756,1764004253741,-151.0,0.00021918,2]
[394831757,1764004253750,-151.0,0.00021918,2]
[394831758,1764004253759,-151.0,0.00021918,2]
[394831759,1764004253769,-187.11564,0.00021918,2]
[394831760,1764004253777,-253.323144,0.00021918,2]
[394831761,1764004253787,-253.323144,0.00021918,2]
[394831762,1764004253796,-253.323144,0.00021918,2]
[394831763,1764004253806,-253.323144,0.00021918,2]
[394831764,1764004253815,-500.0,0.00021918,2]
[394831765,1764004253825,-500.0,0.00021918,2]
[394831766,1764004253834,-500.0,0.00021918,2]
[394831767,1764004253843,-500.0,0.00021918,2]
[394831768,1764004253853,-500.0,0.00021918,2]
[394831769,1764004253862,-500.0,0.00021918,2]
[394831770,1764004253871,-500.0,0.00021918,2]
[394831771,1764004253881,-500.0,0.00021918,2]
[394831772,1764004253890,-500.0,0.00021918,2]
[394831773,1764004253900,-500.0,0.00021918,2]
[394831774,1764004253909,-500.0,0.00021918,2]
[394831775,1764004253919,-500.0,0.00021918,2]
[394831776,1764004253929,-500.0,0.00021918,2]
[394831777,1764004253938,-500.0,0.00021918,2]
[394831778,1764004253947,-500.0,0.00021918,2]
[394831779,1764004253957,-500.0,0.00021918,2]
[394831780,1764004253966,-500.0,0.00021918,2]
[394831781,1764004253976,-500.0,0.00021918,2]
[394831782,1764004253985,-500.0,0.00021918,2]
[394831783,1764004253995,-500.0,0.00021918,2]
[394831784,1764004254004,-500.0,0.00021918,2]
[394831785,1764004254014,-500.0,0.00021918,2]
[394831786,1764004254024,-500.0,0.00021918,2]
[394831787,1764004254034,-500.0,0.00021918,2]
[394831788,1764004254043,-500.0,0.00021918,2]
[394831789,1764004254053,-500.0,0.00021918,2]
[394831790,1764004254062,-500.0,0.00021918,2]
[394831791,1764004254072,-500.0,0.00021918,2]
[394831792,1764004254081,-500.0,0.00021918,2]
[394831793,1764004254091,-406.70491736,0.00021918,2]
[394831794,1764004254100,-500.0,0.00021918,2]
[394831795,1764004254110,-500.0,0.00021918,2]
[394831796,1764004254119,-500.0,0.00021918,2]
[394831797,1764004254129,-151.0,0.00021918,2]
[394831798,1764004254139,-214.361036,0.00021918,2]
[394831799,1764004254148,-151.0,0.00021918,2]
[394831800,1764004254157,-1605.293375,0.00021918,2]
[394831801,1764004254166,-1605.293375,0.00021918,2]
[394831802,1764004254175,-1605.293375,0.00021918,2]
[394831803,1764004254185,-1605.293375,0.00021918,2]
[394831804,1764004254194,-169.06,0.00021956,2]
[394831805,1764004254203,-4151.9553585,0.00022,2]
[394831806,1764004254212,-35341.69761713,0.00022,4]
[394831807,1764004254221,-4117.49448259,0.00022,2]
[394831808,1764004254231,-160.97,0.00022,2]
[394831809,1764004254240,-254.37812853,0.00022,2]
[394831810,1764004254250,-400.0,0.00023,2]
[394831811,1764004254259,-181.39,0.00023041,2]
[394831812,1764004254268,-157.02439288,0.00023083,2]
[394831813,1764004254277,-822.0,0.00023465,2]
[394831814,1764004254286,-1601.0,0.00023465,2]
[394831815,1764004254295,-575.652,0.00023465,2]
[394831816,1764004254304,-659.0,0.00023465,2]
[394831817,1764004254314,-1487.642,0.00023484,2]
[394831818,1764004254324,-6499.0,0.00023484,2]
[394831819,1764004254334,-4609.0,0.00023575,2]
[394831820,1764004254343,-1600.0,0.00023594,2]
[394831821,1764004254353,-1030.69,0.00023719,2]
[394831822,1764004254363,-1000.0,0.00023784,2]
[394831823,1764004254372,-169.06,0.00023952,2]
[394831824,1764004254382,-3461.47,0.000241,7]
[394831825,1764004254392,-593.0205481,0.0002465,2]
[394831826,1764004254401,-352.55,0.00024658,2]
[394831827,1764004254410,-151.0,0.00024658,7]
[394831828,1764004254419,-151.0,0.00024658,7]
[394831829,1764004254429,-151.0,0.00024658,7]
[394831830,1764004254437,-151.0,0.00024658,7]
[394831831,1764004254446,-151.0,0.00024658,7]
[394831832,1764004254456,-151.0,0.00024658,7]
[394831833,1764004254465,-151.0,0.00024658,7]
[394831834,1764004254475,-152.307636,0.00024658,7]
[394831835,1764004254484,-151.0,0.00024658,7]
[394831836,1764004254493,-151.0,0.00024658,7]
[394831837,1764004254502,-151.0,0.00024658,7]
[394831838,1764004254513,-151.0,0.00024658,7]
[394831839,1764004254522,-151.0,0.00024658,7]
[394831840,1764004254532,-151.0,0.00024658,7]
[394831841,1764004254541,-401.662538,0.00024658,7]
[394831842,1764004254551,-401.662538,0.00024658,7]
[394831843,1764004254561,-401.662538,0.00024658,7]
[394831844,1764004254569,-401.662538,0.00024658,7]
[394831845,1764004254578,-401.662538,0.00024658,7]
[394831846,1764004254591,-401.662538,0.00024658,7]
[394831847,1764004254600,-401.662538,0.00024658,7]
[394831848,1764004254609,-401.662538,0.00024658,7]
[394831849,1764004254618,-151.0,0.00024658,7]
[394831850,1764004254627,-151.0,0.00024658,7]
[394831851,1764004254637,-151.0,0.00024658,7]
[394831852,1764004254646,-151.0,0.00024658,7]
[394831853,1764004254655,-151.658377,0.00024658,7]
[394831854,1764004254664,-151.0,0.00024658,7]
[394831855,1764004254673,-155.968001,0.00024658,7]
[394831856,1764004254682,-152.716814,0.00024658,7]
[394831857,1764004254691,-151.0,0.00024658,7]
[394831858,1764004254700,-151.0,0.00024658,7]
[394831859,1764004254709,-153.555843,0.00024658,7]
[394831860,1764004254718,-155.851611,0.00024658,7]
[394831861,1764004254727,-151.0,0.00024658,7]
[394831862,1764004254736,-155.517502,0.00024658,7]
[394831863,1764004254745,-153.564349,0.00024658,7]
[394831864,1764004254755,-151.0,0.00024658,7]
[394831865,1764004254764,-151.0,0.00024658,7]
[394831866,1764004254773,-151.0,0.00024658,7]
[394831867,1764004254782,-151.0,0.00024658,7]
[394831868,1764004254791,-151.0,0.00024658,7]
[394831869,1764004254801,-156.466149,0.00024658,7]
[394831870,1764004254810,-153.665204,0.00024658,7]
[394831871,1764004254819,-151.0,0.00024658,7]
[394831872,1764004254829,-151.0,0.00024658,7]
[394831873,1764004254838,-151.0,0.00024658,7]
[394831874,1764004254848,-154.562476,0.00024658,7]
[394831875,1764004254858,-151.0,0.00024658,7]
[394831876,1764004254867,-151.0,0.00024658,7]
[394831877,1764004254876,-151.0,0.00024658,7]
[394831878,1764004254885,-151.0,0.00024658,7]
[394831879,1764004254895,-151.0,0.00024658,7]
[394831880,1764004254904,-151.0,0.00024658,7]
[394831881,1764004254913,-151.0,0.00024658,7]
[394831882,1764004254923,-151.0,0.00024658,7]
[394831883,1764004254932,-151.641402,0.00024658,7]
[394831884,1764004254941,-151.0,0.00024658,7]
[394831885,1764004254950,-151.0,0.00024658,7]
[394831886,1764004254960,-151.0,0.00024658,7]
[394831887,1764004254969,-151.0,0.00024658,7]
[394831888,1764004254978,-152.165428,0.00024658,7]
[394831889,1764004254987,-151.0,0.00024658,7]
[394831890,1764004254997,-151.0,0.00024658,7]
[394831891,1764004255006,-153.773214,0.00024658,7]
[394831892,1764004255015,-153.074556,0.00024658,7]
[394831893,1764004255024,-151.0,0.00024658,7]
[394831894,1764004255034,-151.0,0.00024658,7]
[394831895,1764004255043,-151.0,0.00024658,7]
[394831896,1764004255052,-151.0,0.00024658,7]
[394831897,1764004255061,-151.0,0.00024658,7]
[394831898,1764004255070,-151.0,0.00024658,7]
[394831899,1764004255079,-151.0,0.00024658,7]
[394831900,1764004255089,-151.0,0.00024658,7]
[394831901,1764004255098,-151.0,0.00024658,7]
[394831902,1764004255106,-151.0,0.00024658,7]
[394831903,1764004255115,-159.719156,0.00024658,7]
[394831904,1764004255125,-151.0,0.00024658,7]
[394831905,1764004255134,-151.0,0.00024658,7]
[394831906,1764004255143,-151.0,0.00024658,7]
[394831907,1764004255152,-151.0,0.00024658,7]
[394831908,1764004255162,-151.0,0.00024658,7]
[394831909,1764004255171,-151.0,0.00024658,7]
[394831910,1764004255180,-151.0,0.00024658,7]
[394831911,1764004255189,-151.0,0.00024658,7]
[394831912,1764004255198,-151.0,0.00024658,7]
[394831913,1764004255207,-151.0,0.00024658,7]
[394831914,1764004255216,-151.0,0.00024658,7]
[394831915,1764004255225,-151.0,0.00024658,7]
[394831916,1764004255234,-151.0,0.00024658,7]
[394831917,1764004255243,-151.0,0.00024658,7]
[394831918,1764004255252,-151.0,0.00024658,7]
[394831919,1764004255261,-151.0,0.00024658,7]
[394831920,1764004255270,-151.0,0.00024658,7]
[394831921,1764004255279,-282.299472,0.00024658,7]
[394831922,1764004255288,-151.0,0.00024658,7]
[394831923,1764004255297,-151.0,0.00024658,7]
[394831924,1764004255306,-151.0,0.00024658,7]
[394831925,1764004255315,-151.0,0.00024658,7]
[394831926,1764004255324,-151.0,0.00024658,7]
[394831927,1764004255334,-151.0,0.00024658,7]
[394831928,1764004255343,-151.0,0.00024658,7]
[394831929,1764004255352,-151.0,0.00024658,7]
[394831930,1764004255361,-151.0,0.00024658,7]
[394831931,1764004255370,-151.0,0.00024658,7]
[394831932,1764004255378,-151.0,0.00024658,7]
[394831933,1764004255388,-155.272748,0.00024658,7]
[394831934,1764004255396,-153.764151,0.00024658,7]
[394831935,1764004255405,-151.0,0.00024658,7]
[394831936,1764004255415,-151.0,0.00024658,7]
[394831937,1764004255424,-199.273236,0.00024658,7]
[394831938,1764004255433,-154.841057,0.00024658,7]
[394831939,1764004255559,-151.0,0.00024658,7]
[394831940,1764004255573,-151.0,0.00024658,7]
[394831941,1764004255583,-151.0,0.00024658,7]
[394831942,1764004255593,-154.42115,0.00024658,7]
[394831943,1764004255602,-151.0,0.00024658,7]
[394831944,1764004255611,-151.0,0.00024658,7]
[394831945,1764004255620,-151.0,0.00024658,7]
[394831946,1764004255628,-151.0,0.00024658,7]
[394831947,1764004255638,-151.0,0.00024658,7]
[394831948,1764004255647,-151.0,0.00024658,7]
[394831949,1764004255656,-151.0,0.00024658,7]
[394831950,1764004255666,-239.156984,0.00024658,7]
[394831951,1764004255676,-153.979282,0.00024658,7]
[394831952,1764004255685,-151.0,0.00024658,7]
[394831953,1764004255694,-157.750623,0.00024658,7]
[394831954,1764004255704,-151.0,0.00024658,7]
[394831955,1764004255714,-151.0,0.00024658,7]
[394831956,1764004255723,-151.0,0.00024658,7]
[394831957,1764004255732,-151.0,0.00024658,7]
[394831958,1764004255741,-151.0,0.00024658,7]
[394831959,1764004255750,-151.0,0.00024658,7]
[394831960,1764004255759,-151.0,0.00024658,7]
[394831961,1764004255768,-151.0,0.00024658,7]
[394831962,1764004255777,-151.0,0.00024658,7]
[394831963,1764004255786,-151.0,0.00024658,7]
[394831964,1764004255795,-151.0,0.00024658,7]
[394831965,1764004255805,-151.0,0.00024658,7]
[394831966,1764004255814,-153.213385,0.00024658,7]
[394831967,1764004255824,-151.0,0.00024658,7]
[394831968,1764004255832,-151.0,0.00024658,7]
[394831969,1764004255842,-151.0,0.00024658,7]
[394831970,1764004255852,-151.0,0.00024658,7]
[394831971,1764004255861,-221.264823,0.00024658,7]
[394831972,1764004255871,-221.264823,0.00024658,7]
[394831973,1764004255880,-221.264823,0.00024658,7]
[394831974,1764004255890,-221.264823,0.00024658,7]
[394831975,1764004255899,-221.264823,0.00024658,7]
[394831976,1764004255908,-221.264823,0.00024658,7]
[394831977,1764004255918,-221.264823,0.00024658,7]
[394831978,1764004255927,-221.264823,0.00024658,7]
[394831979,1764004255935,-498.987907,0.00024658,7]
[394831980,1764004255944,-498.987907,0.00024658,7]
[394831981,1764004255954,-498.987907,0.00024658,7]
[394831982,1764004255963,-498.987907,0.00024658,7]
[394831983,1764004255973,-151.0,0.00024658,7]
[394831984,1764004255982,-151.0,0.00024658,7]
[394831985,1764004255992,-498.987907,0.00024658,7]
[394831986,1764004256002,-498.987907,0.00024658,7]
[394831987,1764004256011,-498.987907,0.00024658,7]
[394831988,1764004256020,-498.987907,0.00024658,7]
[394831989,1764004256029,-151.0,0.00024658,7]
[394831990,1764004256038,-151.0,0.00024658,7]
[394831991,1764004256047,-151.0,0.00024658,7]
[394831992,1764004256056,-151.0,0.00024658,7]
[394831993,1764004256065,-227.091311,0.00024658,7]
[394831994,1764004256074,-227.091311,0.00024658,7]
[394831995,1764004256083,-227.091311,0.00024658,7]
[394831996,1764004256092,-227.091311,0.00024658,7]
[394831997,1764004256101,-151.0,0.00024658,7]
[394831998,1764004256110,-153.868932,0.00024658,7]
[394831999,1764004256119,-227.091311,0.00024658,7]
[394832000,1764004256128,-227.091311,0.00024658,7]
[394832001,1764004256136,-151.0,0.00024658,7]
[394832002,1764004256146,-151.0,0.00024658,7]
[394832003,1764004256155,-227.091311,0.00024658,7]
[394832004,1764004256164,-227.091311,0.00024658,7]
[394832005,1764004256173,-151.0,0.00024658,7]
[394832006,1764004256182,-151.0,0.00024658,7]
[394832007,1764004256191,-151.0,0.00024658,7]
[394832008,1764004256200,-151.0,0.00024658,7]
[394832009,1764004256209,-151.0,0.00024658,7]
[394832010,1764004256218,-151.0,0.00024658,7]
[394832011,1764004256228,-151.0,0.00024658,7]
[394832012,1764004256236,-151.0,0.00024658,7]
[394832013,1764004256246,-151.0,0.00024658,7]